fUSD/lending_fUSD_20241209
["ID","MTS","AMOUNT","RATE_DAILY","PERIOD"]
[344678335,1733716344546,-500.0,9.995e-05,2]
[344678336,1733716344556,-500.0,9.995e-05,2]
[344678337,1733716344566,-500.0,9.995e-05,2]
[344678338,1733716344575,-500.0,9.995e-05,2]
[344678339,1733716344585,-500.0,9.995e-05,2]
[344678340,1733716344595,-500.0,9.995e-05,2]
[344678341,1733716344606,-773.08,9.995e-05,2]
[344678342,1733716344616,-500.0,9.995e-05,2]
[344678343,1733716344626,-773.08,9.995e-05,2]
[344678344,1733716344635,-500.0,9.995e-05,2]
[344678345,1733716344645,-773.08,9.995e-05,2]
[344678346,1733716344658,-500.0,9.995e-05,2]
[344678347,1733716344667,-773.08,9.995e-05,2]
[344678348,1733716344676,-638.46932045,9.995e-05,2]
[344678349,1733716344685,-700.48,9.995e-05,2]
[344678350,1733716344695,-700.48,9.995e-05,2]
[344678351,1733716344705,-700.48,9.995e-05,2]
[344678352,1733716344714,-700.48,9.995e-05,2]
[344678353,1733716344723,-700.48,9.995e-05,2]
[344678354,1733716344735,-1026.98,9.995e-05,2]
[344678355,1733716344744,-700.52119541,9.995e-05,2]
[344678356,1733716344754,-500.0,9.995e-05,2]
[344678357,1733716344763,-1026.98,9.995e-05,2]
[344678358,1733716344773,-500.0,9.995e-05,2]
[344678359,1733716344782,-1026.98,9.995e-05,2]
[344678360,1733716344792,-500.0,9.995e-05,2]
[344678361,1733716344802,-500.0,9.995e-05,2]
[344678362,1733716344812,-500.0,9.995e-05,2]
[344678363,1733716344822,-1026.98,9.995e-05,2]
[344678364,1733716344832,-500.0,9.995e-05,2]
[344678365,1733716344843,-500.0,9.995e-05,2]
[344678366,1733716344853,-500.0,9.995e-05,2]
[344678367,1733716344863,-500.0,9.995e-05,2]
[344678368,1733716344873,-500.0,9.995e-05,2]
[344678369,1733716344882,-500.0,9.995e-05,2]
[344678370,1733716344892,-500.0,9.995e-05,2]
[344678371,1733716344901,-500.0,9.995e-05,2]
[344678372,1733716344911,-1310.64,9.995e-05,2]
[344678373,1733716344920,-1310.64,9.995e-05,2]
[344678374,1733716344931,-1310.64,9.995e-05,2]
[344678375,1733716344941,-1310.64,9.995e-05,2]
[344678376,1733716344951,-818.91,9.995e-05,2]
[344678377,1733716344962,-1106.49,9.995e-05,2]
[344678378,1733716344971,-818.91,9.995e-05,2]
[344678379,1733716344983,-1106.49,9.995e-05,2]
[344678380,1733716344993,-818.91,9.995e-05,2]
[344678381,1733716345003,-1106.49,9.995e-05,2]
[344678382,1733716345012,-1106.49,9.995e-05,2]
[344678383,1733716345024,-1106.49,9.995e-05,2]
[344678384,1733716345035,-1106.49,9.995e-05,2]
[344678385,1733716345044,-1106.49,9.995e-05,2]
[344678386,1733716345053,-1106.49,9.995e-05,2]
[344678387,1733716345062,-1106.49,9.995e-05,2]
[344678388,1733716345072,-818.91,9.995e-05,2]
[344678389,1733716345082,-500.0,9.995e-05,2]
[344678390,1733716345092,-500.0,9.995e-05,2]
[344678391,1733716345102,-500.0,9.995e-05,2]
[344678392,1733716345112,-818.91,9.995e-05,2]
[344678393,1733716345122,-500.0,9.995e-05,2]
[344678394,1733716345131,-500.0,9.995e-05,2]
[344678395,1733716345141,-818.92273733,9.995e-05,2]
[344678396,1733716345151,-500.0,9.995e-05,2]
[344678397,1733716345161,-500.0,9.995e-05,2]
[344678398,1733716345171,-500.0,9.995e-05,2]
[344678399,1733716345181,-500.0,9.995e-05,2]
[344678400,1733716345192,-500.0,9.995e-05,2]
[344678401,1733716345202,-500.0,9.995e-05,2]
[344678402,1733716345211,-500.0,9.995e-05,2]
[344678403,1733716345221,-500.0,9.995e-05,2]
[344678404,1733716345234,-500.0,9.995e-05,2]
[344678405,1733716345244,-500.0,9.995e-05,2]
[344678406,1733716345254,-500.0,9.995e-05,2]
[344678407,1733716345263,-817.83,9.995e-05,2]
[344678408,1733716345273,-817.83,9.995e-05,2]
[344678409,1733716345283,-6667.37,9.995e-05,2]
[344678410,1733716345293,-817.83,9.995e-05,2]
[344678411,1733716345303,-6667.37,9.995e-05,2]
[344678412,1733716345313,-2918.48844043,9.995e-05,2]
[344678413,1733716346063,-3748.88155957,9.995e-05,2]
[344678414,1733716346073,-500.0,9.995e-05,2]
[344678415,1733716346082,-817.83,9.995e-05,2]
[344678416,1733716346091,-5754.18307835,9.995e-05,2]
[344678417,1733716346103,-913.18692165,9.995e-05,2]
[344678418,1733716346113,-758.0,9.995e-05,2]
[344678419,1733716346122,-500.0,9.995e-05,2]
[344678420,1733716346131,-1412.74431575,9.995e-05,2]
[344678421,1733716346145,-5254.62568425,9.995e-05,2]
[344678422,1733716346155,-758.0,9.995e-05,2]
[344678423,1733716346164,-500.0,9.995e-05,2]
[344678424,1733716346173,-6667.46431206,9.995e-05,2]
[344678425,1733716346182,-500.0,9.995e-05,2]
[344678426,1733716346191,-500.0,9.995e-05,2]
[344678427,1733716346201,-500.0,9.995e-05,2]
[344678428,1733716346211,-1337.87,9.995e-05,2]
[344678429,1733716346221,-1337.87,9.995e-05,2]
[344678430,1733716346232,-2424.7,9.995e-05,2]
[344678431,1733716346242,-2424.7,9.995e-05,2]
[344678432,1733716346251,-758.0,9.995e-05,2]
[344678433,1733716346260,-2424.7,9.995e-05,2]
[344678434,1733716346270,-600.40985744,9.995e-05,2]
[344678435,1733716346282,-157.59014256,9.995e-05,2]
[344678436,1733716346293,-475.10620663,9.995e-05,2]
[344678437,1733716346305,-1949.59379337,9.995e-05,2]
[344678438,1733716346314,-758.0,9.995e-05,2]
[344678439,1733716346323,-758.0,9.995e-05,2]
[344678440,1733716346333,-758.0,9.995e-05,2]
[344678441,1733716346342,-758.0,9.995e-05,2]
[344678442,1733716346352,-758.0,9.995e-05,2]
[344678443,1733716346361,-1337.87,9.995e-05,2]
[344678444,1733716346371,-1337.87,9.995e-05,2]
[344678445,1733716346380,-1337.87,9.995e-05,2]
[344678446,1733716346390,-1337.91,9.995e-05,2]
[344678447,1733716346400,-775.97,9.995e-05,2]
[344678448,1733716346410,-775.97,9.995e-05,2]
[344678449,1733716346422,-775.97,9.995e-05,2]
[344678450,1733716346432,-210.46380774,9.995e-05,2]
[344678451,1733716346444,-565.50619226,9.995e-05,2]
[344678452,1733716346453,-775.97,9.995e-05,2]
[344678453,1733716346462,-776.03374708,9.995e-05,2]
[344678454,1733716346472,-5270.12167066,9.995e-05,2]
[344678455,1733716346810,-732.25,9.992e-05,2]
[344678456,1733716346821,-786.70832934,9.995e-05,2]
[344678457,1733716346830,-1466.52727206,9.995e-05,2]
[344678458,1733716346842,-4590.30272794,9.995e-05,2]
[344678459,1733716346851,-1395.37711475,9.995e-05,2]
[344678460,1733716346863,-2983.11321532,9.995e-05,2]
[344678461,1733716347792,-1990.2094,9.649e-05,2]
[344678462,1733716347803,-6697.4,9.945e-05,2]
[344678463,1733716347812,-500.0,9.947e-05,2]
[344678464,1733716347820,-500.0,9.948e-05,2]
[344678465,1733716347832,-1432.69,9.948e-05,2]
[344678466,1733716347842,-1432.69,9.949e-05,2]
[344678467,1733716347851,-500.0,9.949e-05,2]
[344678468,1733716347861,-500.0,9.949e-05,2]
[344678469,1733716347870,-732.25,9.992e-05,2]
[344678470,1733716347879,-732.25,9.992e-05,2]
[344678471,1733716347888,-732.25,9.992e-05,2]
[344678472,1733716347898,-732.25,9.992e-05,2]
[344678473,1733716347908,-732.25,9.992e-05,2]
[344678474,1733716347917,-732.25,9.992e-05,2]
[344678475,1733716347927,-732.25,9.992e-05,2]
[344678476,1733716347936,-732.25,9.992e-05,2]
[344678477,1733716347946,-732.28690053,9.992e-05,2]
[344678478,1733716347956,-500.0,9.994e-05,2]
[344678479,1733716347966,-500.0,9.994e-05,2]
[344678480,1733716347976,-1678.33966993,9.995e-05,2]
[344678481,1733716347991,-6056.83,9.995e-05,2]
[344678482,1733716348000,-6056.83,9.995e-05,2]
[344678483,1733716348011,-6057.0520639,9.995e-05,2]
[344678484,1733716348020,-654.04,9.995e-05,2]
[344678485,1733716348030,-654.04,9.995e-05,2]
[344678486,1733716348040,-654.04,9.995e-05,2]
[344678487,1733716348051,-654.04,9.995e-05,2]
[344678488,1733716348060,-604.86,9.995e-05,2]
[344678489,1733716348071,-604.86,9.995e-05,2]
[344678490,1733716348080,-604.86,9.995e-05,2]
[344678491,1733716348090,-604.86,9.995e-05,2]
[344678492,1733716348100,-604.86,9.995e-05,2]
[344678493,1733716348109,-604.86,9.995e-05,2]
[344678494,1733716348119,-604.86,9.995e-05,2]
[344678495,1733716348128,-604.86,9.995e-05,2]
[344678496,1733716348138,-604.86,9.995e-05,2]
[344678497,1733716348149,-584.54,9.995e-05,2]
[344678498,1733716348159,-1102.82,9.995e-05,2]
[344678499,1733716348169,-584.54,9.995e-05,2]
[344678500,1733716348179,-500.0,9.995e-05,2]
[344678501,1733716348189,-1102.82,9.995e-05,2]
[344678502,1733716348199,-584.54,9.995e-05,2]
[344678503,1733716348209,-500.0,9.995e-05,2]
[344678504,1733716348219,-1102.82,9.995e-05,2]
[344678505,1733716348232,-584.54,9.995e-05,2]
[344678506,1733716348242,-500.0,9.995e-05,2]
[344678507,1733716348252,-1102.82,9.995e-05,2]
[344678508,1733716348262,-584.54,9.995e-05,2]
[344678509,1733716348272,-500.0,9.995e-05,2]
[344678510,1733716348282,-584.54,9.995e-05,2]
[344678511,1733716348292,-1102.82,9.995e-05,2]
[344678512,1733716348302,-584.54,9.995e-05,2]
[344678513,1733716348312,-584.54,9.995e-05,2]
[344678514,1733716348323,-1102.95539379,9.995e-05,2]
[344678515,1733716348334,-584.54,9.995e-05,2]
[344678516,1733716348344,-500.0,9.995e-05,2]
[344678517,1733716348356,-500.0,9.995e-05,2]
[344678518,1733716348366,-500.0,9.995e-05,2]
[344678519,1733716348377,-500.0,9.995e-05,2]
[344678520,1733716348388,-973.85,9.995e-05,2]
[344678521,1733716348399,-500.0,9.995e-05,2]
[344678522,1733716348409,-973.85,9.995e-05,2]
[344678523,1733716348420,-500.0,9.995e-05,2]
[344678524,1733716348431,-973.85,9.995e-05,2]
[344678525,1733716348441,-500.0,9.995e-05,2]
[344678526,1733716348452,-500.0,9.995e-05,2]
[344678527,1733716348462,-973.85,9.995e-05,2]
[344678528,1733716348473,-500.0,9.995e-05,2]
[344678529,1733716348486,-500.0,9.995e-05,2]
[344678530,1733716348496,-500.0,9.995e-05,2]
[344678531,1733716348506,-500.0,9.995e-05,2]
[344678532,1733716348517,-500.0,9.995e-05,2]
[344678533,1733716348527,-7343.22,9.995e-05,2]
[344678534,1733716348539,-800.79,9.995e-05,2]
[344678535,1733716348549,-7343.22,9.995e-05,2]
[344678536,1733716348559,-1451.64,9.995e-05,2]
[344678537,1733716348570,-800.79,9.995e-05,2]
[344678538,1733716348580,-7343.22,9.995e-05,2]
[344678539,1733716348591,-1451.64,9.995e-05,2]
[344678540,1733716348600,-800.79,9.995e-05,2]
[344678541,1733716348610,-7343.22,9.995e-05,2]
[344678542,1733716348620,-1451.64,9.995e-05,2]
[344678543,1733716348630,-7343.22,9.995e-05,2]
[344678544,1733716348640,-1451.64,9.995e-05,2]
[344678545,1733716348654,-800.79,9.995e-05,2]
[344678546,1733716348664,-7343.40873666,9.995e-05,2]
[344678547,1733716348673,-1451.64,9.995e-05,2]
[344678548,1733716348683,-525.97,9.995e-05,2]
[344678549,1733716348694,-1451.68894617,9.995e-05,2]
[344678550,1733716348705,-525.97,9.995e-05,2]
[344678551,1733716348715,-525.97,9.995e-05,2]
[344678552,1733716348725,-525.97,9.995e-05,2]
[344678553,1733716348737,-537.68,9.995e-05,2]
[344678554,1733716348747,-537.68,9.995e-05,2]
[344678555,1733716348757,-593.87,9.995e-05,2]
[344678556,1733716348766,-537.68,9.995e-05,2]
[344678557,1733716348776,-537.68,9.995e-05,2]
[344678558,1733716348786,-593.87,9.995e-05,2]
[344678559,1733716348796,-537.68,9.995e-05,2]
[344678560,1733716348806,-593.87,9.995e-05,2]
[344678561,1733716348815,-537.68,9.995e-05,2]
[344678562,1733716348825,-593.87,9.995e-05,2]
[344678563,1733716348836,-537.68,9.995e-05,2]
[344678564,1733716348847,-593.87,9.995e-05,2]
[344678565,1733716348856,-537.68,9.995e-05,2]
[344678566,1733716348866,-593.87,9.995e-05,2]
[344678567,1733716348875,-537.68,9.995e-05,2]
[344678568,1733716348885,-593.87,9.995e-05,2]
[344678569,1733716348895,-593.87,9.995e-05,2]
[344678570,1733716348904,-593.87,9.995e-05,2]
[344678571,1733716348914,-586.83,9.995e-05,2]
[344678572,1733716348924,-586.83,9.995e-05,2]
[344678573,1733716348934,-586.83,9.995e-05,2]
[344678574,1733716348944,-1456.53,9.995e-05,2]
[344678575,1733716348954,-17657.03,9.995e-05,2]
[344678576,1733716348963,-586.83,9.995e-05,2]
[344678577,1733716348972,-1456.53,9.995e-05,2]
[344678578,1733716348985,-17657.03,9.995e-05,2]
[344678579,1733716348994,-586.83,9.995e-05,2]
[344678580,1733716349004,-1456.53,9.995e-05,2]
[344678581,1733716349014,-17657.03,9.995e-05,2]
[344678582,1733716349023,-587.06438796,9.995e-05,2]
[344678583,1733716349032,-1456.53,9.995e-05,2]
[344678584,1733716349042,-801.83,9.995e-05,2]
[344678585,1733716349051,-17657.03,9.995e-05,2]
[344678586,1733716349061,-17657.03,9.995e-05,2]
[344678587,1733716349071,-801.83,9.995e-05,2]
[344678588,1733716349081,-17657.1420769,9.995e-05,2]
[344678589,1733716349091,-801.83,9.995e-05,2]
[344678590,1733716349101,-738.6880488,9.995e-05,2]
[344678591,1733716349117,-63.1419512,9.995e-05,2]
[344678592,1733716349129,-1025.2518479,9.995e-05,2]
[344678593,1733716349142,-1082.69923015,9.995e-05,2]
[344678594,1733716349823,-6697.4,9.946e-05,2]
[344678595,1733716349836,-1562.09892195,9.995e-05,2]
[344678596,1733716349846,-3670.05,9.995e-05,2]
[344678597,1733716349856,-3670.05,9.995e-05,2]
[344678598,1733716349866,-3670.05,9.995e-05,2]
[344678599,1733716349875,-3670.05,9.995e-05,2]
[344678600,1733716349885,-3670.14934731,9.995e-05,2]
[344678601,1733716349895,-767.09,9.995e-05,2]
[344678602,1733716349905,-706.32848494,9.995e-05,2]
[344678603,1733716349917,-60.76151506,9.995e-05,2]
[344678604,1733716349926,-767.09,9.995e-05,2]
[344678605,1733716349936,-767.09,9.995e-05,2]
[344678606,1733716349945,-526.65847994,9.995e-05,2]
[344678607,1733716349958,-240.43152006,9.995e-05,2]
[344678608,1733716349967,-767.09,9.995e-05,2]
[344678609,1733716349976,-767.09,9.995e-05,2]
[344678610,1733716349989,-767.09,9.995e-05,2]
[344678611,1733716349998,-767.09,9.995e-05,2]
[344678612,1733716350008,-1505.54,9.995e-05,2]
[344678613,1733716350018,-1505.54,9.995e-05,2]
[344678614,1733716350027,-1505.54,9.995e-05,2]
[344678615,1733716350037,-13959.61,9.995e-05,2]
[344678616,1733716350047,-1505.54,9.995e-05,2]
[344678617,1733716350057,-13959.61,9.995e-05,2]
[344678618,1733716350067,-2049.82848002,9.995e-05,2]
[344678619,1733716350080,-11909.78151998,9.995e-05,2]
[344678620,1733716350090,-500.0,9.995e-05,2]
[344678621,1733716350100,-13959.61,9.995e-05,2]
[344678622,1733716350110,-13959.61,9.995e-05,2]
[344678623,1733716350120,-13959.64148478,9.995e-05,2]
[344678624,1733716350129,-500.0,9.995e-05,2]
[344678625,1733716350139,-500.0,9.995e-05,2]
[344678626,1733716350149,-500.0,9.995e-05,2]
[344678627,1733716350160,-500.0,9.995e-05,2]
[344678628,1733716350170,-500.0,9.995e-05,2]
[344678629,1733716350179,-500.0,9.995e-05,2]
[344678630,1733716350189,-500.0,9.995e-05,2]
[344678631,1733716350199,-774.85,9.995e-05,2]
[344678632,1733716350209,-774.85,9.995e-05,2]
[344678633,1733716350219,-774.85,9.995e-05,2]
[344678634,1733716350232,-774.85,9.995e-05,2]
[344678635,1733716350243,-600.43,9.995e-05,2]
[344678636,1733716350253,-600.43,9.995e-05,2]
[344678637,1733716350263,-1055.12,9.995e-05,2]
[344678638,1733716350273,-600.43,9.995e-05,2]
[344678639,1733716350283,-1055.12,9.995e-05,2]
[344678640,1733716350293,-600.43,9.995e-05,2]
[344678641,1733716350304,-1055.12,9.995e-05,2]
[344678642,1733716350314,-1055.12,9.995e-05,2]
[344678643,1733716350325,-1055.12,9.995e-05,2]
[344678644,1733716350335,-1055.12,9.995e-05,2]
[344678645,1733716350345,-1055.12,9.995e-05,2]
[344678646,1733716350355,-1055.12,9.995e-05,2]
[344678647,1733716350365,-1055.12,9.995e-05,2]
[344678648,1733716350376,-3687.54,9.995e-05,2]
[344678649,1733716350386,-500.0,9.995e-05,2]
[344678650,1733716350395,-2763.85395907,9.995e-05,2]
[344678651,1733716350408,-2610.39604093,9.995e-05,2]
[344678652,1733716350418,-1084.82051407,9.995e-05,2]
[344678653,1733716350430,-319.2750025,9.995e-05,2]
[344678683,1733717432145,-157.97,6.986e-05,2]
[344678684,1733717432158,-150.0,8.144e-05,2]
[344678685,1733717432167,-1627.56,8.219e-05,2]
[344678686,1733717432177,-298.76,8.239e-05,2]
[344678687,1733717432187,-158.1,8.25e-05,2]
[344678688,1733717432198,-411.13,8.289e-05,2]
[344678689,1733717432207,-150.0,8.3e-05,2]
[344678690,1733717432217,-300.0,8.3e-05,2]
[344678691,1733717432226,-31306.0,8.301e-05,2]
[344678692,1733717432236,-6611.8582736,8.301e-05,2]
[344678693,1733717432247,-2966.964,8.301e-05,2]
[344678694,1733717432263,-6074.1777264,8.301e-05,2]
[344678695,1733717432273,-15653.0,8.301e-05,2]
[344678696,1733717432283,-15653.0,8.301e-05,2]
[344678697,1733717432292,-15653.0,8.301e-05,2]
[344678698,1733717432302,-2868.25,8.386e-05,2]
[344678699,1733717432312,-200.0,8.435e-05,2]
[344678700,1733717432321,-5354.08,8.498e-05,2]
[344678701,1733717432331,-150.0,8.549e-05,2]
[344678702,1733717432340,-250.0,8.653e-05,2]
[344678703,1733717432350,-151.36,8.673e-05,2]
[344678704,1733717432360,-2500.0,8.753e-05,2]
[344678705,1733717432369,-6752.04105411,8.802e-05,2]
[344678706,1733717432381,-47522.02024589,8.802e-05,2]
[344678707,1733717432391,-250.0,8.824e-05,2]
[344678708,1733717432400,-8231.98,8.848e-05,2]
[344678709,1733717432411,-36971.9828,8.853e-05,2]
[344678710,1733717432421,-1000.0,8.901e-05,2]
[344678711,1733717432430,-10860.0,8.902e-05,2]
[344678712,1733717432439,-10856.0,8.902e-05,2]
[344678713,1733717432450,-10746.89174643,8.902e-05,2]
[344678714,1733717432590,-109.10825357,8.902e-05,2]
[344678715,1733717432600,-1781.60196301,8.902e-05,2]
[344678716,1733717432611,-560.249985,8.902e-05,2]
[344678717,1733717432631,-8514.14805199,8.902e-05,2]
[344678718,1733717432640,-10856.0,8.902e-05,2]
[344678719,1733717432650,-10856.0,8.902e-05,2]
[344678720,1733717432661,-1000.0,8.929e-05,2]
[344678721,1733717432670,-23900.0,8.953e-05,2]
[344678722,1733717432679,-8084.26,8.962e-05,2]
[344678723,1733717432688,-164.58,8.982e-05,2]
[344678724,1733717432697,-824.03,9.049e-05,2]
[344678725,1733717432707,-255.0,9.13e-05,2]
[344678726,1733717432716,-420.0,9.13e-05,2]
[344678727,1733717432725,-166.72,9.181e-05,2]
[344678728,1733717432735,-87700.0,9.289e-05,2]
[344678729,1733717432744,-1600.0,9.4e-05,3]
[344678730,1733717432754,-200.0,9.415e-05,2]
[344678731,1733717432763,-394.082,9.5e-05,2]
[344678732,1733717432773,-3200.0,9.5e-05,3]
[344678733,1733717432782,-4800.0,9.6e-05,3]
[344678734,1733717432792,-500.0,9.647e-05,2]
[344678735,1733717432801,-100001.2075,9.647e-05,2]
[344678736,1733717432810,-326.71,9.67e-05,2]
[344678737,1733717432819,-9939.85,9.67e-05,2]
[344678738,1733717432829,-150.99,9.67e-05,2]
[344678739,1733717432838,-6522.26,9.67e-05,2]
[344678740,1733717432847,-8656.94,9.67e-05,2]
[344678741,1733717432856,-999.99,9.67e-05,2]
[344678742,1733717432865,-9353.66,9.67e-05,2]
[344678743,1733717432874,-552.92,9.67e-05,2]
[344678744,1733717432883,-2999.99,9.67e-05,2]
[344678745,1733717432894,-9999.99,9.67e-05,2]
[344678746,1733717432908,-1437.07,9.67e-05,2]
[344678747,1733717432919,-806.05,9.67e-05,2]
[344678748,1733717432930,-1248.86,9.67e-05,2]
[344678749,1733717432940,-150.99,9.67e-05,2]
[344678750,1733717432949,-299.99,9.67e-05,2]
[344678751,1733717432958,-499.99,9.67e-05,2]
[344678752,1733717432968,-4818.64,9.67e-05,2]
[344678753,1733717432977,-5141.84,9.67e-05,2]
[344678754,1733717432986,-1681.18875946,9.7e-05,3]
[344678755,1733717434921,-499.6499995,9.7e-05,3]
[344678756,1733717434935,-1500.0,9.7e-05,3]
[344678757,1733717435087,-297.4086185,9.7e-05,3]
[344678805,1733717438160,-2421.75262254,9.7e-05,3]
[344678806,1733717438171,-375.58346618,9.791e-05,2]
[344678807,1733717438893,-534.4333347,9.791e-05,2]
[344678808,1733717438929,-500.66779912,9.791e-05,2]
[344678809,1733717438939,-3027.67197405,9.8e-05,3]
[344678811,1733717438950,-4972.32802595,9.8e-05,3]
[344678813,1733717438959,-1148.68461024,9.85e-05,2]
[344678815,1733717438968,-500.0,9.863e-05,2]
[344678817,1733717438977,-500.0,9.863e-05,2]
[344678819,1733717438986,-500.0,9.863e-05,2]
[344678821,1733717438995,-500.0,9.863e-05,2]
[344678823,1733717439005,-207.073467,9.863e-05,2]
[344678825,1733717439018,-189.308549,9.863e-05,2]
[344678826,1733717439027,-500.0,9.863e-05,2]
[344678827,1733717439036,-500.0,9.863e-05,2]
[344678828,1733717439045,-500.0,9.863e-05,2]
[344678829,1733717439054,-7430.35,9.863e-05,2]
[344678831,1733717439063,-500.0,9.863e-05,2]
[344678833,1733717439072,-500.0,9.863e-05,2]
[344678834,1733717439082,-500.0,9.863e-05,2]
[344678835,1733717439091,-1870.74,9.863e-05,2]
[344678836,1733717439101,-913.04,9.863e-05,2]
[344678837,1733717439110,-500.0,9.863e-05,2]
[344678838,1733717439119,-500.0,9.863e-05,2]
[344678839,1733717439129,-500.0,9.863e-05,2]
[344678840,1733717439138,-500.0,9.863e-05,2]
[344678841,1733717439147,-500.0,9.863e-05,2]
[344678843,1733717439156,-3566.18,9.863e-05,2]
[344678845,1733717439169,-500.0,9.863e-05,2]
[344678847,1733717439182,-500.0,9.863e-05,2]
[344678849,1733717439191,-500.0,9.863e-05,2]
[344678851,1733717439200,-500.0,9.863e-05,2]
[344678853,1733717439210,-500.0,9.863e-05,2]
[344678855,1733717439220,-500.0,9.863e-05,2]
[344678857,1733717439231,-500.0,9.863e-05,2]
[344678859,1733717439241,-500.0,9.863e-05,2]
[344678861,1733717439250,-500.0,9.863e-05,2]
[344678863,1733717439263,-500.0,9.863e-05,2]
[344678865,1733717439276,-500.0,9.863e-05,2]
[344678867,1733717439285,-500.0,9.863e-05,2]
[344678869,1733717439294,-500.0,9.863e-05,2]
[344678871,1733717439303,-500.0,9.863e-05,2]
[344678873,1733717439312,-500.0,9.863e-05,2]
[344678875,1733717439321,-500.0,9.863e-05,2]
[344678877,1733717439329,-707.68,9.863e-05,2]
[344678878,1733717439338,-788.67,9.863e-05,2]
[344678879,1733717439347,-500.0,9.863e-05,2]
[344678880,1733717439355,-788.67,9.863e-05,2]
[344678881,1733717439364,-500.0,9.863e-05,2]
[344678882,1733717439372,-500.0,9.863e-05,2]
[344678883,1733717439381,-500.0,9.863e-05,2]
[344678884,1733717439390,-500.0,9.863e-05,2]
[344678885,1733717439399,-500.0,9.863e-05,2]
[344678886,1733717439407,-500.0,9.863e-05,2]
[344678887,1733717439418,-500.0,9.863e-05,2]
[344678888,1733717439427,-2968.09,9.863e-05,2]
[344678889,1733717439436,-500.0,9.863e-05,2]
[344678890,1733717439445,-500.0,9.863e-05,2]
[344678891,1733717439454,-500.0,9.863e-05,2]
[344678892,1733717439463,-500.0,9.863e-05,2]
[344678893,1733717439473,-500.0,9.863e-05,2]
[344678894,1733717439483,-500.0,9.863e-05,2]
[344678895,1733717439491,-500.0,9.863e-05,2]
[344678896,1733717439500,-500.0,9.863e-05,2]
[344678897,1733717439510,-4599.17468885,9.863e-05,2]
[344678898,1733717439522,-1540.11531115,9.863e-05,2]
[344678899,1733717439531,-500.0,9.863e-05,2]
[344678900,1733717439539,-500.0,9.863e-05,2]
[344678901,1733717439548,-2915.52,9.863e-05,2]
[344678902,1733717439558,-2915.52,9.863e-05,2]
[344678903,1733717439567,-500.0,9.863e-05,2]
[344678904,1733717439576,-500.0,9.863e-05,2]
[344678905,1733717439585,-500.0,9.863e-05,2]
[344678906,1733717439595,-662.95,9.863e-05,2]
[344678907,1733717439604,-662.95,9.863e-05,2]
[344678908,1733717439613,-500.0,9.863e-05,2]
[344678909,1733717439622,-500.0,9.863e-05,2]
[344678910,1733717439631,-500.0,9.863e-05,2]
[344678911,1733717439640,-500.0,9.863e-05,2]
[344678912,1733717439650,-500.0,9.863e-05,2]
[344678913,1733717439659,-500.0,9.863e-05,2]
[344678914,1733717439669,-500.0,9.863e-05,2]
[344678915,1733717439678,-500.0,9.863e-05,2]
[344678916,1733717439688,-500.0,9.863e-05,2]
[344678917,1733717439697,-500.0,9.863e-05,2]
[344678918,1733717439706,-500.0,9.863e-05,2]
[344678919,1733717439716,-500.0,9.863e-05,2]
[344678920,1733717439726,-500.0,9.863e-05,2]
[344678921,1733717439737,-500.0,9.863e-05,2]
[344678922,1733717439747,-500.0,9.863e-05,2]
[344678923,1733717439756,-500.0,9.863e-05,2]
[344678924,1733717439765,-500.0,9.863e-05,2]
[344678925,1733717439775,-500.0,9.863e-05,2]
[344678926,1733717439784,-500.0,9.863e-05,2]
[344678927,1733717439793,-500.0,9.863e-05,2]
[344678928,1733717439803,-500.0,9.863e-05,2]
[344678929,1733717439812,-500.0,9.863e-05,2]
[344678930,1733717439821,-500.0,9.863e-05,2]
[344678931,1733717439831,-500.0,9.863e-05,2]
[344678932,1733717439840,-500.0,9.863e-05,2]
[344678933,1733717439849,-7344.14,9.863e-05,2]
[344678934,1733717439859,-500.0,9.863e-05,2]
[344678935,1733717439868,-500.0,9.863e-05,2]
[344678936,1733717439878,-500.0,9.863e-05,2]
[344678937,1733717439893,-500.0,9.863e-05,2]
[344678938,1733717439902,-1000.28,9.863e-05,2]